[Event "Titled Tuesday Blitz June 13 Late 2023"]
[White "MaryanKyrychenko"]
[Black "Slovineanu, Viacheslav"]
[BlackFideId "13900510"]
[WhiteElo "2572"]
[BlackElo "2312"]
[Result "1-0"]
[Round "3"]
[TimeControl "180+2"]
[Date "2023.06.13"]
[WhiteClock "0:00:12"]
[BlackClock "0:00:00"]
[Board "157"]

1. e4 {[%clk 0:03:00]}  c6 {[%clk 0:02:54]} 2. d4 {[%clk 0:03:00]}  d5 {[%clk 0:02:54]} 3. e5 {[%clk 0:03:00]}  Bf5 {[%clk 0:02:53]} 4. Nf3 {[%clk 0:03:01]}  e6 {[%clk 0:02:53]} 5. Be2 {[%clk 0:03:01]}  Nd7 {[%clk 0:02:54]} 6. O-O {[%clk 0:03:02]}  a6 {[%clk 0:02:54]} 7. Re1 {[%clk 0:03:02]}  h6 {[%clk 0:02:52]} 8. Nbd2 {[%clk 0:03:00]}  Rc8 {[%clk 0:02:50]} 9. Nb3 {[%clk 0:03:00]}  c5 {[%clk 0:02:50]} 10. dxc5 {[%clk 0:03:00]}  Bxc5 {[%clk 0:02:50]} 11. Nxc5 {[%clk 0:02:59]}  Nxc5 {[%clk 0:02:50]} 12. Nd4 {[%clk 0:03:00]}  Ne7 {[%clk 0:02:48]} 13. Be3 {[%clk 0:02:57]}  O-O {[%clk 0:02:44]} 14. Rc1 {[%clk 0:02:54]}  Nd7 {[%clk 0:02:36]} 15. f4 {[%clk 0:02:34]}  Be4 {[%clk 0:02:35]} 16. Qd2 {[%clk 0:02:28]}  Nf5 {[%clk 0:02:32]} 17. Nxf5 {[%clk 0:02:25]}  Bxf5 {[%clk 0:02:31]} 18. c4 {[%clk 0:02:24]}  Be4 {[%clk 0:02:19]} 19. cxd5 {[%clk 0:02:16]}  Bxd5 {[%clk 0:02:18]} 20. Rxc8 {[%clk 0:02:16]}  Qxc8 {[%clk 0:02:17]} 21. Rc1 {[%clk 0:02:16]}  Qd8 {[%clk 0:02:16]} 22. Qb4 {[%clk 0:01:34]}  f6 {[%clk 0:02:06]} 23. Qd6 {[%clk 0:01:23]}  fxe5 {[%clk 0:01:48]} 24. fxe5 {[%clk 0:01:24]}  Rf5 {[%clk 0:01:47]} 25. Bd3 {[%clk 0:00:20]}  Rxe5 {[%clk 0:01:39]} 26. Bf4 {[%clk 0:00:20]}  Rg5 {[%clk 0:01:39]} 27. Bxg5 {[%clk 0:00:19]}  Qxg5 {[%clk 0:01:39]} 28. Rc2 {[%clk 0:00:15]}  Qe3+ {[%clk 0:01:39]} 29. Rf2 {[%clk 0:00:15]}  Qxd3 {[%clk 0:01:37]} 30. Qxd7 {[%clk 0:00:15]}  Kh7 {[%clk 0:01:13]} 31. Qf7 {[%clk 0:00:11]}  Qb1+ {[%clk 0:01:08]} 32. Rf1 {[%clk 0:00:09]}  Qxb2 {[%clk 0:01:08]} 33. Qf2 {[%clk 0:00:09]}  Qxa2 {[%clk 0:01:06]} 34. Qxa2 {[%clk 0:00:08]}  Bxa2 {[%clk 0:01:05]} 35. Kf2 {[%clk 0:00:09]}  Bd5 {[%clk 0:01:05]} 36. g3 {[%clk 0:00:09]}  Kg6 {[%clk 0:00:53]} 37. Ke3 {[%clk 0:00:09]}  Kg5 {[%clk 0:00:50]} 38. Rf4 {[%clk 0:00:08]}  a5 {[%clk 0:00:43]} 39. h4+ {[%clk 0:00:08]}  Kg6 {[%clk 0:00:42]} 40. Ra4 {[%clk 0:00:07]}  b6 {[%clk 0:00:42]} 41. Kf4 {[%clk 0:00:07]}  Kf6 {[%clk 0:00:41]} 42. Ra1 {[%clk 0:00:06]}  g5+ {[%clk 0:00:39]} 43. hxg5+ {[%clk 0:00:05]}  hxg5+ {[%clk 0:00:40]} 44. Ke3 {[%clk 0:00:06]}  Ke5 {[%clk 0:00:39]} 45. Rb1 {[%clk 0:00:06]}  a4 {[%clk 0:00:38]} 46. Rxb6 {[%clk 0:00:06]}  a3 {[%clk 0:00:39]} 47. Ra6 {[%clk 0:00:07]}  a2 {[%clk 0:00:39]} 48. Ra5 {[%clk 0:00:07]}  Kf5 {[%clk 0:00:39]} 49. Ra4 {[%clk 0:00:07]}  Bb3 {[%clk 0:00:33]} 50. Ra3 {[%clk 0:00:06]}  Kg4 {[%clk 0:00:33]} 51. Ke4 {[%clk 0:00:06]}  Bd5+ {[%clk 0:00:31]} 52. Ke5 {[%clk 0:00:06]}  Kh3 {[%clk 0:00:29]} 53. Kf6 {[%clk 0:00:06]}  g4 {[%clk 0:00:28]} 54. Kg5 {[%clk 0:00:06]}  Bb3 {[%clk 0:00:19]} 55. Kf4 {[%clk 0:00:06]}  Bc4 {[%clk 0:00:17]} 56. Ra5 {[%clk 0:00:04]}  Bd5 {[%clk 0:00:15]} 57. Ra3 {[%clk 0:00:04]}  Bc4 {[%clk 0:00:14]} 58. Ra5 {[%clk 0:00:04]}  Kg2 {[%clk 0:00:12]} 59. Ra3 {[%clk 0:00:02]}  Kf2 {[%clk 0:00:11]} 60. Kxg4 {[%clk 0:00:02]}  e5 {[%clk 0:00:12]} 61. Kf5 {[%clk 0:00:02]}  e4 {[%clk 0:00:11]} 62. Kxe4 {[%clk 0:00:02]}  Be6 {[%clk 0:00:10]} 63. Kd4 {[%clk 0:00:02]}  Ke2 {[%clk 0:00:09]} 64. Kc3 {[%clk 0:00:02]}  Kf3 {[%clk 0:00:09]} 65. Kb2+ {[%clk 0:00:03]}  Kg4 {[%clk 0:00:09]} 66. Ra6 {[%clk 0:00:03]}  Bd5 {[%clk 0:00:09]} 67. Ra3 {[%clk 0:00:04]}  Be6 {[%clk 0:00:09]} 68. Ka1 {[%clk 0:00:05]}  Bd5 {[%clk 0:00:09]} 69. Rc3 {[%clk 0:00:05]}  Be6 {[%clk 0:00:09]} 70. Re3 {[%clk 0:00:05]}  Bd5 {[%clk 0:00:09]} 71. Re5 {[%clk 0:00:06]}  Bb3 {[%clk 0:00:08]} 72. Re7 {[%clk 0:00:06]}  Bd5 {[%clk 0:00:08]} 73. Re5 {[%clk 0:00:05]}  Bb3 {[%clk 0:00:07]} 74. Re7 {[%clk 0:00:05]}  Bd5 {[%clk 0:00:07]} 75. Rg7+ {[%clk 0:00:06]}  Kf5 {[%clk 0:00:06]} 76. g4+ {[%clk 0:00:07]}  Kf6 {[%clk 0:00:06]} 77. Ra7 {[%clk 0:00:07]}  Kg6 {[%clk 0:00:05]} 78. Ra5 {[%clk 0:00:07]}  Bc4 {[%clk 0:00:05]} 79. g5 {[%clk 0:00:08]}  Bf7 {[%clk 0:00:03]} 80. Kb2 {[%clk 0:00:08]}  Be6 {[%clk 0:00:02]} 81. Kc3 {[%clk 0:00:09]}  Bf7 {[%clk 0:00:02]} 82. Kd2 {[%clk 0:00:09]}  Bc4 {[%clk 0:00:02]} 83. Ke3 {[%clk 0:00:09]}  Bf7 {[%clk 0:00:02]} 84. Kf4 {[%clk 0:00:09]}  Bc4 {[%clk 0:00:01]} 85. Ra3 {[%clk 0:00:10]}  Bd5 {[%clk 0:00:01]} 86. Ra6+ {[%clk 0:00:10]}  Kg7 {[%clk 0:00:01]} 87. Kf5 {[%clk 0:00:11]}  Bb3 {[%clk 0:00:00]} 88. Ra7+ {[%clk 0:00:12]} 1-0


[Site "https://www.chess.com"]

[Event "Titled Tuesday Blitz June 13 Late 2023"]
[White "Han, Yichen"]
[Black "Sairam, Pranav"]
[WhiteFideId "1054430"]
[BlackFideId "30951330"]
[WhiteElo "2342"]
[BlackElo "1918"]
[Result "0-1"]
[Round "3"]
[TimeControl "180+2"]
[Date "2023.06.13"]
[WhiteClock "0:00:04"]
[BlackClock "0:00:04"]
[Board "158"]

1. d4 {[%clk 0:03:00]}  d5 {[%clk 0:02:59]} 2. Nf3 {[%clk 0:03:01]}  Nf6 {[%clk 0:02:58]} 3. c4 {[%clk 0:03:02]}  e6 {[%clk 0:02:58]} 4. Nc3 {[%clk 0:03:02]}  Be7 {[%clk 0:02:56]} 5. Bg5 {[%clk 0:03:02]}  O-O {[%clk 0:02:56]} 6. e3 {[%clk 0:03:02]}  Nbd7 {[%clk 0:02:51]} 7. Qc2 {[%clk 0:03:02]}  h6 {[%clk 0:02:49]} 8. h4 {[%clk 0:02:55]}  c5 {[%clk 0:02:27]} 9. cxd5 {[%clk 0:02:48]}  cxd4 {[%clk 0:02:19]} 10. Nxd4 {[%clk 0:02:31]}  Nxd5 {[%clk 0:02:16]} 11. Bxe7 {[%clk 0:02:15]}  Qxe7 {[%clk 0:02:13]} 12. Bd3 {[%clk 0:02:12]}  Nb4 {[%clk 0:02:08]} 13. Qe2 {[%clk 0:02:12]}  Nxd3+ {[%clk 0:02:06]} 14. Qxd3 {[%clk 0:02:13]}  Nc5 {[%clk 0:02:00]} 15. Qe2 {[%clk 0:02:03]}  e5 {[%clk 0:01:57]} 16. Nf3 {[%clk 0:01:55]}  e4 {[%clk 0:01:56]} 17. Nd4 {[%clk 0:01:50]}  Nd3+ {[%clk 0:01:56]} 18. Kf1 {[%clk 0:01:48]}  f5 {[%clk 0:01:50]} 19. g3 {[%clk 0:01:23]}  Bd7 {[%clk 0:01:18]} 20. Kg2 {[%clk 0:01:19]}  Bc6 {[%clk 0:01:15]} 21. Nxc6 {[%clk 0:01:18]}  bxc6 {[%clk 0:01:15]} 22. Rhd1 {[%clk 0:00:58]}  Rab8 {[%clk 0:01:02]} 23. Rab1 {[%clk 0:00:55]}  Qb4 {[%clk 0:00:29]} 24. Rxd3 {[%clk 0:00:31]}  exd3 {[%clk 0:00:26]} 25. Qxd3 {[%clk 0:00:32]}  Rbd8 {[%clk 0:00:21]} 26. Qe2 {[%clk 0:00:21]}  Qc5 {[%clk 0:00:19]} 27. Na4 {[%clk 0:00:17]}  Qd5+ {[%clk 0:00:18]} 28. Kh2 {[%clk 0:00:17]}  Qxa2 {[%clk 0:00:18]} 29. Nc3 {[%clk 0:00:17]}  Qe6 {[%clk 0:00:14]} 30. Ra1 {[%clk 0:00:17]}  f4 {[%clk 0:00:13]} 31. Rxa7 {[%clk 0:00:16]}  f3 {[%clk 0:00:12]} 32. Qc2 {[%clk 0:00:13]}  Rf7 {[%clk 0:00:08]} 33. Ra6 {[%clk 0:00:13]}  Qc4 {[%clk 0:00:04]} 34. Ra4 {[%clk 0:00:04]}  Qf1 {[%clk 0:00:04]} 0-1


[Site "https://www.chess.com"]

[Event "Titled Tuesday Blitz June 13 Late 2023"]
[White "Kaufman, Raymond"]
[Black "Aggelis, Nikolaos"]
[WhiteFideId "2015056"]
[BlackFideId "4213220"]
[WhiteElo "2264"]
[BlackElo "2189"]
[Result "0-1"]
[Round "3"]
[TimeControl "180+2"]
[Date "2023.06.13"]
[WhiteClock "0:02:34"]
[BlackClock "0:02:58"]
[Board "161"]

1. c4 {[%clk 0:03:00]}  f5 {[%clk 0:02:58]} 2. g3 {[%clk 0:02:59]}  Nf6 {[%clk 0:02:58]} 3. Bg2 {[%clk 0:02:59]}  g6 {[%clk 0:02:59]} 4. Nc3 {[%clk 0:02:59]}  Bg7 {[%clk 0:03:00]} 5. d3 {[%clk 0:02:57]}  O-O {[%clk 0:03:00]} 6. e4 {[%clk 0:02:57]}  d6 {[%clk 0:03:00]} 7. Nge2 {[%clk 0:02:54]}  e5 {[%clk 0:03:00]} 8. O-O {[%clk 0:02:52]}  f4 {[%clk 0:02:57]} 9. gxf4 {[%clk 0:02:51]}  Nh5 {[%clk 0:02:58]} 10. f5 {[%clk 0:02:47]}  gxf5 {[%clk 0:02:59]} 11. Nf4 {[%clk 0:02:34]}  Nxf4 {[%clk 0:02:58]} 0-1


[Site "https://www.chess.com"]

[Event "Titled Tuesday Blitz June 13 Late 2023"]
[White "Kostiukov, Alexandr"]
[Black "Ai, Evan"]
[WhiteFideId "14108100"]
[BlackFideId "2094770"]
[WhiteElo "2202"]
[BlackElo "1963"]
[Result "0-1"]
[Round "3"]
[TimeControl "180+2"]
[Date "2023.06.13"]
[WhiteClock "0:00:00"]
[BlackClock "0:00:03"]
[Board "165"]

1. g3 {[%clk 0:02:55]}  d5 {[%clk 0:02:59]} 2. Bg2 {[%clk 0:02:56]}  e5 {[%clk 0:02:59]} 3. c4 {[%clk 0:02:52]}  Nf6 {[%clk 0:02:55]} 4. cxd5 {[%clk 0:02:52]}  Nxd5 {[%clk 0:02:56]} 5. Nf3 {[%clk 0:02:52]}  Nc6 {[%clk 0:02:53]} 6. O-O {[%clk 0:02:52]}  Be6 {[%clk 0:02:43]} 7. d4 {[%clk 0:02:49]}  exd4 {[%clk 0:02:37]} 8. Nxd4 {[%clk 0:02:49]}  Nxd4 {[%clk 0:02:37]} 9. Qxd4 {[%clk 0:02:50]}  c6 {[%clk 0:02:32]} 10. Rd1 {[%clk 0:02:45]}  Qf6 {[%clk 0:02:26]} 11. Qxf6 {[%clk 0:02:37]}  Nxf6 {[%clk 0:02:27]} 12. Nc3 {[%clk 0:02:37]}  Bb4 {[%clk 0:02:24]} 13. Bg5 {[%clk 0:02:25]}  Bxc3 {[%clk 0:02:10]} 14. bxc3 {[%clk 0:02:24]}  Nd5 {[%clk 0:02:08]} 15. c4 {[%clk 0:02:14]}  Nb6 {[%clk 0:01:59]} 16. c5 {[%clk 0:02:09]}  Nd7 {[%clk 0:01:39]} 17. Rab1 {[%clk 0:02:04]}  Nxc5 {[%clk 0:01:33]} 18. Be3 {[%clk 0:01:49]}  Na4 {[%clk 0:01:25]} 19. Rxb7 {[%clk 0:01:45]}  O-O {[%clk 0:01:25]} 20. Rc1 {[%clk 0:01:30]}  Bxa2 {[%clk 0:00:23]} 21. Bxa7 {[%clk 0:01:08]}  Bd5 {[%clk 0:00:14]} 22. e4 {[%clk 0:01:08]}  Be6 {[%clk 0:00:14]} 23. Rxc6 {[%clk 0:01:02]}  Nb2 {[%clk 0:00:12]} 24. h4 {[%clk 0:00:45]}  Nc4 {[%clk 0:00:11]} 25. Bc5 {[%clk 0:00:32]}  Rfd8 {[%clk 0:00:10]} 26. Rb1 {[%clk 0:00:24]}  Rac8 {[%clk 0:00:07]} 27. Rxc8 {[%clk 0:00:21]}  Rxc8 {[%clk 0:00:08]} 28. Bd4 {[%clk 0:00:21]}  g6 {[%clk 0:00:06]} 29. Bf6 {[%clk 0:00:17]}  Nd2 {[%clk 0:00:05]} 30. Rd1 {[%clk 0:00:17]}  Nb3 {[%clk 0:00:05]} 31. f4 {[%clk 0:00:13]}  Nc5 {[%clk 0:00:05]} 32. Kh2 {[%clk 0:00:08]}  Bb3 {[%clk 0:00:04]} 33. Rc1 {[%clk 0:00:06]}  Be6 {[%clk 0:00:04]} 34. Bh3 {[%clk 0:00:06]}  Nxe4 {[%clk 0:00:02]} 35. Rxc8+ {[%clk 0:00:04]}  Bxc8 {[%clk 0:00:03]} 36. Be5 {[%clk 0:00:01]}  Bxh3 {[%clk 0:00:03]} 37. Kxh3 {[%clk 0:00:00]}  f5 {[%clk 0:00:03]} 0-1


[Site "https://www.chess.com"]

[Event "Titled Tuesday Blitz June 13 Late 2023"]
[White "marik_spb"]
[Black "Rodriguez Santiago, Jaime"]
[BlackFideId "3100898"]
[WhiteElo "2460"]
[BlackElo "2025"]
[Result "1-0"]
[Round "3"]
[TimeControl "180+2"]
[Date "2023.06.13"]
[WhiteClock "0:01:57"]
[BlackClock "0:00:28"]
[Board "166"]

1. e4 {[%clk 0:03:00]}  c6 {[%clk 0:02:58]} 2. c4 {[%clk 0:03:00]}  d5 {[%clk 0:02:58]} 3. cxd5 {[%clk 0:03:01]}  cxd5 {[%clk 0:02:58]} 4. exd5 {[%clk 0:03:02]}  Nf6 {[%clk 0:02:57]} 5. Qa4+ {[%clk 0:03:02]}  Bd7 {[%clk 0:02:54]} 6. Qb3 {[%clk 0:03:00]}  b6 {[%clk 0:02:50]} 7. Nc3 {[%clk 0:02:59]}  g6 {[%clk 0:02:46]} 8. Nf3 {[%clk 0:02:59]}  Bg7 {[%clk 0:02:46]} 9. Bc4 {[%clk 0:02:56]}  O-O {[%clk 0:02:44]} 10. O-O {[%clk 0:02:56]}  Bg4 {[%clk 0:02:38]} 11. Ne5 {[%clk 0:02:54]}  Nbd7 {[%clk 0:02:35]} 12. d4 {[%clk 0:02:51]}  Rc8 {[%clk 0:02:28]} 13. Nc6 {[%clk 0:02:31]}  Rxc6 {[%clk 0:01:39]} 14. dxc6 {[%clk 0:02:30]}  Nb8 {[%clk 0:01:37]} 15. d5 {[%clk 0:02:29]}  Qc7 {[%clk 0:01:34]} 16. Re1 {[%clk 0:02:26]}  Ne8 {[%clk 0:01:28]} 17. h3 {[%clk 0:02:24]}  Bc8 {[%clk 0:01:26]} 18. Bg5 {[%clk 0:02:20]}  Bf6 {[%clk 0:01:00]} 19. Bxf6 {[%clk 0:02:19]}  Nxf6 {[%clk 0:00:57]} 20. Nb5 {[%clk 0:02:18]}  Qf4 {[%clk 0:00:50]} 21. Nxa7 {[%clk 0:02:16]}  Bf5 {[%clk 0:00:48]} 22. Rxe7 {[%clk 0:02:11]}  Ne4 {[%clk 0:00:45]} 23. Qe3 {[%clk 0:02:07]}  Qh4 {[%clk 0:00:28]} 24. c7 {[%clk 0:01:57]} 1-0


[Site "https://www.chess.com"]

[Event "Titled Tuesday Blitz June 13 Late 2023"]
[White "Sarkar, Justin"]
[Black "Mazibuko, Khanya"]
[WhiteFideId "2010011"]
[BlackFideId "14321041"]
[WhiteElo "2151"]
[BlackElo "1873"]
[Result "0-1"]
[Round "3"]
[TimeControl "180+2"]
[Date "2023.06.13"]
[WhiteClock "0:00:00"]
[BlackClock "0:02:29"]
[Board "167"]

1. e4 {[%clk 0:02:52]}  c5 {[%clk 0:02:58]} 2. Nf3 {[%clk 0:02:51]}  Nc6 {[%clk 0:02:57]} 3. d4 {[%clk 0:02:50]}  cxd4 {[%clk 0:02:56]} 4. Nxd4 {[%clk 0:02:50]}  g6 {[%clk 0:02:57]} 5. c4 {[%clk 0:02:41]}  Bg7 {[%clk 0:02:56]} 6. Be3 {[%clk 0:02:38]}  Nf6 {[%clk 0:02:57]} 7. Nc3 {[%clk 0:02:37]}  O-O {[%clk 0:02:57]} 8. Be2 {[%clk 0:02:23]}  d6 {[%clk 0:02:56]} 9. Rc1 {[%clk 0:02:18]}  Bd7 {[%clk 0:02:56]} 10. O-O {[%clk 0:02:08]}  Nxd4 {[%clk 0:02:55]} 11. Bxd4 {[%clk 0:02:07]}  Bc6 {[%clk 0:02:56]} 12. f3 {[%clk 0:01:59]}  a5 {[%clk 0:02:56]} 13. b3 {[%clk 0:01:48]}  Nd7 {[%clk 0:02:55]} 14. Be3 {[%clk 0:01:42]}  Nc5 {[%clk 0:02:55]} 15. Qd2 {[%clk 0:01:00]}  Qb6 {[%clk 0:02:55]} 16. Nd5 {[%clk 0:00:54]}  Bxd5 {[%clk 0:02:52]} 17. cxd5 {[%clk 0:00:52]}  Rfc8 {[%clk 0:02:51]} 18. Rc4 {[%clk 0:00:47]}  Qd8 {[%clk 0:02:47]} 19. Rfc1 {[%clk 0:00:46]}  b6 {[%clk 0:02:44]} 20. R4c2 {[%clk 0:00:45]}  h5 {[%clk 0:02:41]} 21. Bb5 {[%clk 0:00:43]}  Kh7 {[%clk 0:02:39]} 22. Bc6 {[%clk 0:00:40]}  Rab8 {[%clk 0:02:38]} 23. Rc4 {[%clk 0:00:27]}  Qf8 {[%clk 0:02:36]} 24. Rf1 {[%clk 0:00:16]}  Bh6 {[%clk 0:02:34]} 25. Bxh6 {[%clk 0:00:08]}  Qxh6 {[%clk 0:02:33]} 26. Qxh6+ {[%clk 0:00:07]}  Kxh6 {[%clk 0:02:33]} 27. Rd1 {[%clk 0:00:05]}  e5 {[%clk 0:02:33]} 28. Kf2 {[%clk 0:00:02]}  f5 {[%clk 0:02:32]} 29. Ke3 {[%clk 0:00:02]}  Rf8 {[%clk 0:02:31]} 30. Rc3 {[%clk 0:00:01]}  fxe4 {[%clk 0:02:29]} 31. fxe4 {[%clk 0:00:00]}  Rf4 {[%clk 0:02:29]} 0-1


[Site "https://www.chess.com"]

[Event "Titled Tuesday Blitz June 13 Late 2023"]
[White "ArchibaldCerveza29"]
[Black "Celestino, Rafael Teixeira"]
[BlackFideId "2108925"]
[WhiteElo "2441"]
[BlackElo "2279"]
[Result "1-0"]
[Round "3"]
[TimeControl "180+2"]
[Date "2023.06.13"]
[WhiteClock "0:01:03"]
[BlackClock "0:00:41"]
[Board "168"]

1. e4 {[%clk 0:03:00]}  e5 {[%clk 0:02:59]} 2. Nf3 {[%clk 0:02:56]}  Nc6 {[%clk 0:02:56]} 3. Bc4 {[%clk 0:02:55]}  Bc5 {[%clk 0:02:56]} 4. O-O {[%clk 0:02:54]}  Nf6 {[%clk 0:02:54]} 5. d4 {[%clk 0:02:54]}  Bxd4 {[%clk 0:02:53]} 6. Nxd4 {[%clk 0:02:54]}  Nxd4 {[%clk 0:02:53]} 7. Bg5 {[%clk 0:02:54]}  h6 {[%clk 0:02:53]} 8. Bh4 {[%clk 0:02:54]}  g5 {[%clk 0:02:52]} 9. f4 {[%clk 0:02:54]}  d5 {[%clk 0:02:26]} 10. exd5 {[%clk 0:02:54]}  Ne4 {[%clk 0:02:25]} 11. fxe5 {[%clk 0:02:25]}  gxh4 {[%clk 0:02:21]} 12. Qxd4 {[%clk 0:02:24]}  Ng5 {[%clk 0:02:16]} 13. e6 {[%clk 0:02:18]}  O-O {[%clk 0:02:13]} 14. exf7+ {[%clk 0:02:09]}  Nxf7 {[%clk 0:02:13]} 15. Nc3 {[%clk 0:02:03]}  Bd7 {[%clk 0:01:42]} 16. Ne4 {[%clk 0:02:00]}  Nd6 {[%clk 0:01:30]} 17. Nf6+ {[%clk 0:01:56]}  Rxf6 {[%clk 0:01:26]} 18. Rxf6 {[%clk 0:01:57]}  Nf5 {[%clk 0:00:53]} 19. d6+ {[%clk 0:01:45]}  Kh7 {[%clk 0:00:53]} 20. Rf7+ {[%clk 0:01:42]}  Kg6 {[%clk 0:00:52]} 21. Qg4+ {[%clk 0:01:02]}  Qg5 {[%clk 0:00:51]} 22. Qxg5+ {[%clk 0:01:02]}  hxg5 {[%clk 0:00:41]} 23. Rxd7 {[%clk 0:01:03]} 1-0


[Site "https://www.chess.com"]

[Event "Titled Tuesday Blitz June 13 Late 2023"]
[White "KorolDimitriy75"]
[Black "Matsuura, Frederico"]
[BlackFideId "2107848"]
[WhiteElo "2424"]
[BlackElo "2302"]
[Result "0-1"]
[Round "3"]
[TimeControl "180+2"]
[Date "2023.06.13"]
[WhiteClock "0:00:04"]
[BlackClock "0:00:15"]
[Board "169"]

1. d4 {[%clk 0:03:00]}  e6 {[%clk 0:02:59]} 2. c4 {[%clk 0:03:01]}  d5 {[%clk 0:03:00]} 3. Nc3 {[%clk 0:03:01]}  Nf6 {[%clk 0:03:00]} 4. Bg5 {[%clk 0:03:01]}  Be7 {[%clk 0:03:00]} 5. cxd5 {[%clk 0:03:01]}  exd5 {[%clk 0:03:00]} 6. e3 {[%clk 0:03:01]}  c6 {[%clk 0:03:01]} 7. Bd3 {[%clk 0:03:01]}  Nbd7 {[%clk 0:03:01]} 8. Qc2 {[%clk 0:03:01]}  Nh5 {[%clk 0:03:01]} 9. Bxe7 {[%clk 0:03:00]}  Qxe7 {[%clk 0:03:02]} 10. Nge2 {[%clk 0:02:59]}  g6 {[%clk 0:03:01]} 11. O-O {[%clk 0:02:59]}  O-O {[%clk 0:02:58]} 12. Rae1 {[%clk 0:02:57]}  Ndf6 {[%clk 0:02:53]} 13. Qd2 {[%clk 0:02:48]}  Be6 {[%clk 0:02:40]} 14. f3 {[%clk 0:02:48]}  c5 {[%clk 0:02:40]} 15. dxc5 {[%clk 0:02:41]}  Qxc5 {[%clk 0:02:40]} 16. Nd4 {[%clk 0:02:42]}  Ng7 {[%clk 0:02:36]} 17. Rd1 {[%clk 0:02:29]}  Rac8 {[%clk 0:02:35]} 18. Rfe1 {[%clk 0:02:29]}  a6 {[%clk 0:02:32]} 19. a3 {[%clk 0:02:28]}  Rfe8 {[%clk 0:02:30]} 20. h3 {[%clk 0:02:26]}  Qc7 {[%clk 0:02:20]} 21. Bb1 {[%clk 0:02:16]}  Qc4 {[%clk 0:02:05]} 22. Ba2 {[%clk 0:02:13]}  Qc7 {[%clk 0:02:05]} 23. Nxe6 {[%clk 0:01:54]}  fxe6 {[%clk 0:02:04]} 24. e4 {[%clk 0:01:52]}  dxe4 {[%clk 0:01:51]} 25. Nxe4 {[%clk 0:01:53]}  Nxe4 {[%clk 0:01:49]} 26. Rxe4 {[%clk 0:01:48]}  Rcd8 {[%clk 0:01:47]} 27. Rd4 {[%clk 0:01:42]}  Rxd4 {[%clk 0:01:29]} 28. Qxd4 {[%clk 0:01:43]}  Nf5 {[%clk 0:01:28]} 29. Qf6 {[%clk 0:01:02]}  Qf7 {[%clk 0:01:24]} 30. Qe5 {[%clk 0:00:59]}  Qe7 {[%clk 0:01:15]} 31. Kh2 {[%clk 0:00:57]}  Kf7 {[%clk 0:01:09]} 32. Rc1 {[%clk 0:00:53]}  Rd8 {[%clk 0:01:05]} 33. Rc7 {[%clk 0:00:38]}  Rd7 {[%clk 0:01:05]} 34. Rc8 {[%clk 0:00:36]}  Qd6 {[%clk 0:00:50]} 35. Qxd6 {[%clk 0:00:31]}  Nxd6 {[%clk 0:00:50]} 36. Rh8 {[%clk 0:00:21]}  Kf6 {[%clk 0:00:50]} 37. b4 {[%clk 0:00:18]}  g5 {[%clk 0:00:41]} 38. Rb8 {[%clk 0:00:16]}  Nf5 {[%clk 0:00:40]} 39. Bb1 {[%clk 0:00:12]}  h5 {[%clk 0:00:39]} 40. Be4 {[%clk 0:00:12]}  Nd6 {[%clk 0:00:38]} 41. Bd3 {[%clk 0:00:12]}  h4 {[%clk 0:00:38]} 42. Kg1 {[%clk 0:00:11]}  Nf5 {[%clk 0:00:36]} 43. Be4 {[%clk 0:00:11]}  Nd6 {[%clk 0:00:33]} 44. Bd3 {[%clk 0:00:11]}  Ke5 {[%clk 0:00:32]} 45. Kf2 {[%clk 0:00:11]}  Nf5 {[%clk 0:00:32]} 46. Be4 {[%clk 0:00:11]}  Nd6 {[%clk 0:00:31]} 47. Bd3 {[%clk 0:00:11]}  Rc7 {[%clk 0:00:31]} 48. Ke2 {[%clk 0:00:09]}  Nf5 {[%clk 0:00:30]} 49. Kf2 {[%clk 0:00:08]}  Rc3 {[%clk 0:00:27]} 50. Be4 {[%clk 0:00:08]}  Rxa3 {[%clk 0:00:26]} 51. Rxb7 {[%clk 0:00:09]}  Ra2+ {[%clk 0:00:26]} 52. Kg1 {[%clk 0:00:08]}  Ng3 {[%clk 0:00:26]} 53. Rb6 {[%clk 0:00:08]}  Kf4 {[%clk 0:00:19]} 54. Bd3 {[%clk 0:00:06]}  e5 {[%clk 0:00:17]} 55. Rxa6 {[%clk 0:00:05]}  Rb2 {[%clk 0:00:17]} 56. b5 {[%clk 0:00:05]}  Rd2 {[%clk 0:00:16]} 57. Bc4 {[%clk 0:00:05]}  Ke3 {[%clk 0:00:15]} 58. b6 {[%clk 0:00:05]}  Rd1+ {[%clk 0:00:15]} 59. Kh2 {[%clk 0:00:04]}  Rh1# {[%clk 0:00:15]} 0-1


[Site "https://www.chess.com"]

[Event "Titled Tuesday Blitz June 13 Late 2023"]
[White "Magallanes, Rey Jomar"]
[Black "Bouget, Alexandre"]
[WhiteFideId "5205948"]
[BlackFideId "681318"]
[WhiteElo "2270"]
[BlackElo "2189"]
[Result "0-1"]
[Round "3"]
[TimeControl "180+2"]
[Date "2023.06.13"]
[WhiteClock "0:01:25"]
[BlackClock "0:00:41"]
[Board "170"]

1. e4 {[%clk 0:03:00]}  g6 {[%clk 0:02:45]} 2. d4 {[%clk 0:02:59]}  Bg7 {[%clk 0:02:46]} 3. Nf3 {[%clk 0:03:00]}  c6 {[%clk 0:02:40]} 4. Nc3 {[%clk 0:03:00]}  d5 {[%clk 0:02:40]} 5. e5 {[%clk 0:02:59]}  Nh6 {[%clk 0:02:41]} 6. Bd3 {[%clk 0:02:58]}  Nf5 {[%clk 0:02:40]} 7. Bf4 {[%clk 0:02:53]}  h5 {[%clk 0:02:28]} 8. Qd2 {[%clk 0:02:53]}  b5 {[%clk 0:02:18]} 9. O-O-O {[%clk 0:02:46]}  Qa5 {[%clk 0:02:16]} 10. h3 {[%clk 0:02:35]}  Nd7 {[%clk 0:02:08]} 11. g4 {[%clk 0:02:33]}  Nh6 {[%clk 0:02:01]} 12. gxh5 {[%clk 0:02:29]}  gxh5 {[%clk 0:01:56]} 13. Rhg1 {[%clk 0:02:27]}  Bf8 {[%clk 0:01:56]} 14. e6 {[%clk 0:02:22]}  Nb6 {[%clk 0:01:52]} 15. exf7+ {[%clk 0:02:17]}  Nxf7 {[%clk 0:01:51]} 16. Bg6 {[%clk 0:02:15]}  Nc4 {[%clk 0:01:42]} 17. Bxf7+ {[%clk 0:02:15]}  Kxf7 {[%clk 0:01:40]} 18. Ne5+ {[%clk 0:02:11]}  Ke8 {[%clk 0:01:34]} 19. Qe2 {[%clk 0:02:10]}  Qb4 {[%clk 0:01:30]} 20. Nxc4 {[%clk 0:02:00]}  bxc4 {[%clk 0:01:28]} 21. Be5 {[%clk 0:01:56]}  Bh6+ {[%clk 0:01:23]} 22. f4 {[%clk 0:01:52]}  Rb8 {[%clk 0:01:19]} 23. Qxh5+ {[%clk 0:01:50]}  Kd8 {[%clk 0:01:15]} 24. Bxh8 {[%clk 0:01:45]}  Bxf4+ {[%clk 0:01:06]} 25. Rd2 {[%clk 0:01:44]}  Qxb2+ {[%clk 0:01:04]} 26. Kd1 {[%clk 0:01:42]}  Qa1+ {[%clk 0:00:55]} 27. Ke2 {[%clk 0:01:41]}  Qxg1 {[%clk 0:00:53]} 28. Qf3 {[%clk 0:01:34]}  Qh2+ {[%clk 0:00:48]} 29. Kf1 {[%clk 0:01:25]}  Qxd2 {[%clk 0:00:41]} 0-1


[Site "https://www.chess.com"]